Cogmind - Beta 11.1 @@@ ROGUE MODE // 2022.07.05 @ 21:40:08 Player: Dickface Result: Destroyed by Y-45 Defender with Heavy Assault Rifle Performance ------------- Evolutions (1) 500 Regions Visited (3) 600 Robots Destroyed (19) 95 Value Destroyed (485) 485 Prototype IDs (0) 0 Alien Tech Used (0) 0 Bonus (0) 0 TOTAL SCORE: 1680 Bonus ------- None Cogmind --------- Core Integrity 0/400 Matter 277/300 Energy 100/100 System Corruption 0% Temperature Cool (0) Movement Core (350) Ox6 Location -9/Materials Parts ------- > --- POWER (1) -------- (None) > --- PROPULSION (3) --- (None) > --- UTILITY (3) ------ Heat Sink Large Storage Unit > --- WEAPON (2) ------- (None) > --- INVENTORY (15) --- Aluminum Leg Aluminum Leg Aluminum Leg Compact Wheel Armored Wheel Large Storage Unit Improved Terrain Scanner Peak State ------------ > --- POWER ------------ Ion Engine > --- PROPULSION ------- Compact Wheel Compact Wheel > --- UTILITY ---------- Heat Sink Large Storage Unit > --- WEAPON ----------- EM Pulse Gun Particle Gun > --- INVENTORY -------- Aluminum Leg Aluminum Leg Aluminum Leg Aluminum Leg Aluminum Leg Large Storage Unit Improved Terrain Scanner Grenade Launcher [Rating: 9] Favorites ----------- Power Ion Engine Engine Ion Engine Propulsion Compact Wheel Leg Aluminum Leg Wheel Compact Wheel Utility Large Storage Unit Device Heat Sink Storage Large Storage Unit Weapon Medium Laser Energy Gun Medium Laser Launcher Grenade Launcher Build | -11 -10 -10 -9 ------- Run | Scr Mat Min Mat Slots Evolved 2 | . . . 2 Power . | . . . . Propulsion 1 | . . . 1 Utility 1 | . . . 1 Weapon . | . . . . Parts Attached 19 | 6 5 4 4 Power 3 | 1 1 1 . Engine 3 | 1 1 1 . Core . | . . . . Reactor . | . . . . Propulsion 5 | 2 . . 3 Treads . | . . . . Leg 3 | . . . 3 Wheel 2 | 2 . . . Hover . | . . . . Flight . | . . . . Utility 4 | 1 2 . 1 Device 2 | . 1 . 1 Storage 2 | 1 1 . . Processor . | . . . . Hackware . | . . . . Protection . | . . . . Artifact . | . . . . Weapon 7 | 2 2 3 . Energy Gun 6 | 2 2 2 . Energy Cannon . | . . . . Ballistic Gun . | . . . . Ballistic Cannon . | . . . . Launcher 1 | . . 1 . Special Weapon . | . . . . Impact Weapon . | . . . . Slashing Weapon . | . . . . Piercing Weapon . | . . . . Special Melee Weapon . | . . . . Unidentified Prototypes . | . . . . Parts Lost 10 | . . 4 6 Power 2 | . . 1 1 Propulsion 4 | . . 1 3 Utility 1 | . . . 1 Weapon 3 | . . 2 1 Highest Loss Streak 6 | . . 3 6 To Critical Strikes . | . . . . Average Slot Usage (%) 88 | . 93 96 63 Engine 12 | . 13 14 6 Leg 5 | . . . 26 Wheel 21 | . 28 27 . Device 13 | . 9 14 15 Storage 13 | . 14 14 11 Energy Gun 19 | . 26 24 . Launcher 1 | . . 1 4 Naked Turns . | . . . . Heaviest Build 31 | 14 30 31 29 Greatest Support 36 | 32 32 32 36 Greatest Overweight (x) 6 | . . 1 6 Average Overweight (x) . | . . . . Largest Inventory Capacity 15 | 8 15 15 15 Average Capacity 14 | 7 13 15 15 Most Carried 11 | 6 7 11 9 Average Carried 6 | 3 5 7 6 Final Capacity 15 | 8 15 15 15 Final Carried 8 | 4 6 8 7 Class Distribution -------------------- 100% | Mutant Dominant Class ---------------- Mutant | -10/Materials Mutant | -10/Mines Mutant | -9/Materials Resources | -11 -10 -10 -9 ----------- Run | Scr Mat Min Mat Matter Collected 385 | 186 124 75 . Remotely . | . . . . Salvage Created 466 | . 154 312 . Parts 31 | . 6 25 . Haulers Intercepted . | . . . . Recyclers Shooed . | . . . . Parts Field Recycled . | . . . . Retrieved Matter . | . . . . Parts Self-Destructed . | . . . . Prevented . | . . . . Kills | -11 -10 -10 -9 ------- Run | Scr Mat Min Mat Combat Hostiles Destroyed 14 | . 5 9 . Guns 7 | . 5 2 . AOE 7 | . . 7 . Classes Destroyed 3 | . 2 1 . Tunneler 5 | . . 5 . Swarmer 3 | . 3 . . Grunt 11 | . 2 9 . Best Kill Streak 10 | . 4 10 . Combat Bots Only 6 | . 4 6 . Max Kills in Single Turn 3 | . 1 3 . Gunslinging . | . . . . Exploded 2 | . . 2 . Melee . | . . . . Uniques/NPCs Destroyed . | . . . . Combat | -11 -10 -10 -9 -------- Run | Scr Mat Min Mat Damage Taken 1413 | . 157 362 894 Core 537 | . 55 70 412 Absorbed by Shields . | . . . . Core Remaining (%) 75 | 100 . 50 . Volleys Fired 38 | 1 11 24 2 Largest 2 | 2 2 2 1 Hottest 105 | 90 90 105 30 Shots Fired 67 | 2 22 41 2 Gun 58 | 2 22 34 . Cannon . | . . . . Launcher 9 | . . 7 2 Special . | . . . . Kinetic . | . . . . Thermal 40 | 1 11 28 . Explosive 9 | . . 7 2 Electromagnetic 18 | 1 11 6 . Robot Hit Streak 9 | . 9 7 1 Robot Miss Streak 4 | . 1 4 1 Penetration Max . | . . . . Secondary Targets . | . . . . Shots Hit Robots 40 | . 18 21 1 Core Hits 31 | . 8 21 2 Critical Kills . | . . . . Critical Parts Destroyed . | . . . . Critical Strikes 3 | . 2 1 . Burn 2 | . 1 1 . Corrupt 1 | . 1 . . Melee Attacks . | . . . . Impact . | . . . . Slashing . | . . . . Piercing . | . . . . Sneak Attacks . | . . . . Combat Hostiles . | . . . . Follow-up Attacks . | . . . . Damage Inflicted 1074 | . 224 791 59 Guns 452 | . 224 228 . Cannons . | . . . . Explosions 593 | . . 563 30 Melee . | . . . . Ramming 29 | . . . 29 Kinetic . | . . . . Thermal 383 | . 112 271 . Explosive 489 | . . 459 30 Electromagnetic 173 | . 112 61 . Impact . | . . . . Slashing . | . . . . Piercing . | . . . . Highest Corruption . | . . . . Average Corruption . | . . . . Corruption Purged . | . . . . Corruption Blocked . | . . . . Overload Shots . | . . . . Overflow Damage 1 | . . 1 . Projectiles . | . . . . Explosions 1 | . . 1 . Melee . | . . . . Knockbacks . | . . . . Impact . | . . . . Kinetic . | . . . . Secondary . | . . . . Self-Inflicted Damage 29 | . . 29 . Shots 1 | . . 1 . Rammed . | . . . . Targets Rammed 10 | . . . 10 Kicked 10 | . . . 10 Crushed . | . . . . Highest Temperature 128 | 30 45 128 9 Average Temperature 55 | 17 23 70 5 Received Heat Transfer 684 | . 57 186 441 Siege Activations . | . . . . Robots Corrupted . | . . . . Combat Hostiles . | . . . . Parts Fried . | . . . . Impact Corruptions . | . . . . Robots Melted . | . . . . Combat Hostiles . | . . . . Parts Melted 3 | . 1 2 . Heat Transferred 1112 | . 407 705 . Parts Sabotaged . | . . . . Parts Stolen . | . . . . Parts Stripped . | . . . . Power Chain Reactions 1 | . . 1 . Missiles Intercepted . | . . . . Alert | -11 -10 -10 -9 ------- Run | Scr Mat Min Mat Peak Influence 208 | . 183 208 141 Initial 80 | . . 70 80 Average 96 | . 104 100 98 Maximum Alert Level 1 | . . 1 . Low Security (%) 97 | 100 100 94 100 Level 1 2 | . . 5 . Level 2 . | . . . . Level 3 . | . . . . Level 4 . | . . . . Level 5 . | . . . . High Security . | . . . . Max Security . | . . . . Squads Dispatched 1 | . . . 1 Investigation 1 | . . . 1 Extermination . | . . . . Reinforcement . | . . . . Assault . | . . . . Garrison . | . . . . Intercept . | . . . . Searches Triggered . | . . . . Construction Impeded . | . . . . Haulers Reinforced . | . . . . Active Scanning Responses . | . . . . Cargo Convoy Interrupts . | . . . . Stealth | -11 -10 -10 -9 --------- Run | Scr Mat Min Mat Distress Signals 1 | . . 1 . Communications Jammed . | . . . . Distress Signals . | . . . . Times Spotted 23 | . 11 8 4 Peak Tracking Total 4 | . 4 4 4 Tactical Retreats 2 | . 2 . . Traps | -11 -10 -10 -9 ------- Run | Scr Mat Min Mat Traps Triggered 2 | . 1 . 1 Indirectly . | . . . . Trap Hack Attempts . | . . . . Triggered . | . . . . Disarmed . | . . . . Reprogrammed . | . . . . Reused . | . . . . Traps Extracted . | . . . . Installed . | . . . . Triggered . | . . . . Machines | -11 -10 -10 -9 ---------- Run | Scr Mat Min Mat Machines Disabled 2 | . . 1 1 Max in Single Turn 1 | . . 1 1 Machines Sabotaged . | . . . . Garrisons Compromised . | . . . . Overloaded Fab Kills . | . . . . Hacking | -11 -10 -10 -9 --------- Run | Scr Mat Min Mat Machines Accessed 2 | . . 1 1 Terminals 2 | . . 1 1 Fabricators . | . . . . Repair Stations . | . . . . Recycling Units . | . . . . Scanalyzers . | . . . . Garrison Access . | . . . . Total Hacks 5 | . . 1 4 Successful 4 | . . 1 3 Failed 1 | . . . 1 Catastrophic 1 | . . . 1 Database Lockouts . | . . . . Manual . | . . . . Terminals 5 | . . 1 4 Fabricators . | . . . . Repair Stations . | . . . . Recycling Units . | . . . . Scanalyzers . | . . . . Garrison Access . | . . . . Terminal Hacks 4 | . . 1 3 Record 3 | . . . 3 Zone Layout 1 | . . 1 . Fabricator Hacks . | . . . . Repair Station Hacks . | . . . . Recycling Unit Hacks . | . . . . Scanalyzer . | . . . . Garrison Access Hacks . | . . . . Unauthorized Hacks . | . . . . Terminals . | . . . . Fabricators . | . . . . Repair Stations . | . . . . Recycling Units . | . . . . Scanalyzers . | . . . . Garrison Access . | . . . . Data Cores Recovered . | . . . . Used . | . . . . Hacking Detections 2 | . . 1 1 Full Trace Events . | . . . . Feedback Events . | . . . . Feedback Blocked . | . . . . Robot Schematics Acquired . | . . . . Robots Built . | . . . . Authchips . | . . . . Time . | . . . . Total Robot Build Rating . | . . . . Part Schematics Acquired . | . . . . Parts Built . | . . . . Authchips . | . . . . Time . | . . . . Total Part Build Rating . | . . . . Parts Repaired . | . . . . Time . | . . . . Parts Recycled . | . . . . Recycled Matter . | . . . . Retrieved Matter . | . . . . Retrieved Components . | . . . . Parts Scanalyzed . | . . . . Part Schematics Acquired . | . . . . Parts Damaged . | . . . . Bothacking | -11 -10 -10 -9 ------------ Run | Scr Mat Min Mat Used RIF Installer . | . . . . Robots Hacked . | . . . . Non-combat . | . . . . Combat . | . . . . Robot Hacks Applied . | . . . . Relay Couplers Released . | . . . . Fabnet Peak Effective % . | . . . . Robots Rewired . | . . . . Allies Hacked . | . . . . Hacks Repelled . | . . . . Allies | -11 -10 -10 -9 -------- Run | Scr Mat Min Mat Total Allies . | . . . . Largest Group . | . . . . Highest-Rated Group . | . . . . Highest-Rated Ally . | . . . . Total Orders . | . . . . Ally Attacks . | . . . . Total Damage . | . . . . Kills . | . . . . Allies Corrupted . | . . . . Allies Melted . | . . . . Intel | -11 -10 -10 -9 ------- Run | Scr Mat Min Mat Robot Analysis Total . | . . . . Derelict Logs Recovered . | . . . . Drone Launches . | . . . . Drone Recoveries . | . . . . Exploration | -11 -10 -10 -9 ------------- Run | Scr Mat Min Mat Turns Passed 1048 | 55 305 474 214 Spaces Moved 602 | 41 235 200 126 Core 14 | 8 . . 6 Treads . | . . . . Legs 120 | . . . 120 Wheels 468 | 33 235 200 . Hover . | . . . . Flight . | . . . . Fastest Speed 50 | 50 100 100 120 Average Speed 108 | 90 100 101 142 Slowest Speed 350 | 100 100 115 350 Overloaded Moves . | . . . . Propulsion Burnouts . | . . . . Robots Hopped . | . . . . Cave-ins Triggered . | . . . . Exploration Rate (%) 23 | 4 41 36 12 Regions Visited 3 Branch Regions 1 Pre-discovered Areas . | . . . . Known Exits Taken . | . . . . Unknown Exits Taken 3 | 1 1 1 . Scrap Searched . | . . . . Spaces Dug . | . . . . Terrain Destroyed 42 | . . 29 13 Melee . | . . . . Projectile . | . . . . AOE 42 | . . 29 13 Terrain Rammed . | . . . . Walls Destroyed . | . . . . Machines Disabled . | . . . . Actions | -11 -10 -10 -9 --------- Run | Scr Mat Min Mat Total 928 | 57 284 432 155 Wait 230 | . 25 195 10 Move 599 | 40 234 199 126 Hop . | . . . . Pick Up 25 | 10 7 6 2 Fast Attach . | . . . . Attach 19 | 6 5 4 4 Detach 4 | . 1 2 1 Swap . | . . . . Drop 3 | . 1 2 . Fire 38 | 1 11 24 2 Melee . | . . . . Ram . | . . . . Kick 10 | . . . 10 Crush . | . . . . Escape Stasis . | . . . . Rewire . | . . . . Trap . | . . . . Miscellaneous . | . . . . Route ------- -11/Scrapyard -10/Materials -10/Mines -9/Materials History --------- Turn | Location | Event 25 | -11/Scrapyard | Discovered new exit (range 14) 56 | -11/Scrapyard | Entered Materials 301 | -10/Materials | Build established: Mutant 354 | -10/Materials | Discovered new exit (range 7) 361 | -10/Materials | Entered Mines 542 | -10/Mines | Excavation squad dispatched 542 | -10/Mines | A large section of the Mines collapsed 792 | -10/Mines | Excavation squad dispatched 801 | -10/Mines | Discovered new exit (range 14) 835 | -10/Mines | Entered Materials 835 | -9/Materials | Evolved 2 slots: Propulsion x1, Utility x1 840 | -9/Materials | Lost 3 parts (1n2w) 1037 | -9/Materials | Core integrity fell below 50% 1044 | -9/Materials | Core integrity fell below 20% 1049 | -9/Materials | Destroyed by Y-45 Defender with Heavy Assault Rifle Last Messages --------------- 00927_ Critical hit (Burn: +37). 00946_ Acquired Weight Redist. System. 00953_ Ion Engine destroyed. 00953_ Acquired Arm. Wheel. 00960_ Critical hit (Burn: +37). 00965_ T-07 Excavator is excavating. 00976_ Kicked Y-45 Defender out of the way. 00977_ Kicked G-34 Mercenary. 00978_ T-07 Excavator is excavating. 00978_ Aluminum Leg destroyed. 00978_ Kicked G-34 Mercenary out of the way. 00980_ Kicked G-34 Mercenary. 00981_ Critical hit (Burn: +37). 00995_ Kicked R-06 Scavenger. 01001_ Kicked W-16 Scout. 01003_ Aluminum Leg destroyed. 01010_ Kicked W-16 Scout. 01029_ Aluminum Leg destroyed. 01034_ Weight Redist. System destroyed. 01046_ Critical hit (Burn: +37). Map ----- +----------------------------------------------------+ | ?????????????????????????????????????????????????? | | ?????????????????????????????????????????????????? | | ?????????????????????????????????????????????????? | | ?????????????????????????????????????????????????? | | ?????????????????????????????????????????????????? | | ?????????????????????????????????????????????????? | | ?????????????????????????????????????????????????? | | ?????????????????????????????????????????????????? | | ?????????????????????????????????????????????????? | | ?????????????????????????????????????????????????? | | ?????????????????????????????????????????????????? | | ?????????????????????????????????????????????????? | | ?????????????????????????????????????????????????? | | ?????????????????????????????????????????????????? | | ?????????????????????????????????????????????????? | | ?????????????????????????????????????????????????? | | ?????????????????????#############???????????????? | | ####????????######## """ """ """ #???????????????? | | ####?????# !# """ """ """ #???????????????? | | "" + #?????# T # """ """ """ ######??????????? | | Y" ## #?????# == # # ##########?? | | ## #?????# == # # #?? | | ##+#####?# = # !# #?? | | # #?# #########+##### #?? | | #+# " " #?####+#+####### ######+######?? | | " " ###### g @ ## #??? | | ;Y ## #??? | | ###### Y """"" ## #??? | | ### #????# """"" ## #??? | | ## ###????# """"" ###### #??? | | #### # ######## ###### #??? | | + #??? | | ####################"T"#########" ### #??? | | #??????????????????#"""#???????#"T#?###########??? | | ???????????????????#####???????####??????????????? | | ?????????????????????????????????????????????????? | | | | | | | | | | | | | | | | | | | | | | | | | | | | | +----------------------------------------------------+ Best States ------------- Heat Dissipation 38 Energy Generation 10 Energy Capacity 250 Matter Stores 300 Matter Capacity 300 Sight Range 16 Terrain Scan Density 10 Additional Mass Support 6 Evasion (%) 55 Item Schematics ----------------- None Robot Schematics ------------------ None Fabricated ------------ Nothing Alien Tech Used ----------------- None Achievements -------------- None Challenges ------------ None Game ------ Seed ContainmentFactoryWings Manual? 0 Play Time 00:14:26 Cumulative 15.4 hours Start 2022.07.05 @ 21:28:28 End 2022.07.05 @ 21:40:08 Sessions 1 Manual Loads 0 Difficulty Rogue Special Mode None Game No. 40 Rogue 40 Adventurer 0 Explorer 0 Win Type - Total 0 Types 0/0/0/0/0/0/0/0/0 Lore% 10 Gallery% 20 Achievement% 10 Wizard Run 0 Options --------- ASCII 0 Keyboard 0 Movement Mouse Keybinds 0 Fullscreen 2 Font 18/TerminusBold Map View 76x50 Tactical HUD 1 Map Filters NONE Filters NONE Steam 1 RUN: 5ea5c856-636f-42d4-89d0-39b2093341d0